bitfinex-derivatives/quotes_SOLF0:USTF0_20250514
["timestamp","ask_amount","ask_price","bid_price","bid_amount"]
[1747194277487,3.50845417,180.16,180.1,58.54]
[1747194277691,0.99968659,180.15,180.1,58.54]
[1747194277895,3.50845417,180.16,180.1,58.54]
[1747194278083,0.99959007,180.15,180.1,58.54]
[1747194278493,5.5522,180.12,180.1,58.54]
[1747194284196,5.5524,180.11,180.1,58.54]
[1747194284692,5.5522,180.12,180.1,58.54]
[1747194287395,525.4357603,180.2,180.11,3.49488782]
[1747194287588,161.4357603,180.2,180.11,3.4946895]
[1747194287791,161.4357603,180.21,180.14,3.4946895]
[1747194287993,161.4357603,180.21,180.15,58.54]
[1747194288194,161.4357603,180.21,180.17,5.5504]
[1747194288396,161.4357603,180.21,180.15,58.54]
[1747194288592,161.4357603,180.21,180.15,62.117]
[1747194289197,161.4357603,180.21,180.18,5.55]
[1747194289998,161.4357603,180.21,180.17,5.5505]
[1747194290601,58.52,180.23,180.17,5.5505]
[1747194290794,58.52,180.23,180.15,5.3614]
[1747194291097,1.0006042,180.22,180.13,58.5]
[1747194291400,5.5497,180.2,180.16,5.5508]
[1747194291994,58.52,180.23,180.18,5.5502]
[1747194292296,1.00068838,180.22,180.13,58.5]
[1747194292486,58.5,180.23,180.16,3.4946895]
[1747194292795,5.5487,180.23,180.19,5.5497]
[1747194292992,64.0487,180.23,180.19,5.5497]
[1747194293796,5.549,180.22,180.19,5.5497]
[1747194293996,58.5,180.23,180.19,5.5497]
[1747194294293,369.5483,180.25,180.18,58.5]
[1747194294498,58.5,180.26,180.18,58.5]
[1747194294693,58.5,180.27,180.19,3.4946895]
[1747194294893,5.5477,180.27,180.23,5.5485]
[1747194295096,64.0477,180.27,180.23,5.5485]
[1747194295588,5.5477,180.27,180.23,5.5485]
[1747194295896,5.5478,180.26,180.22,5.549]
[1747194296096,58.5,180.27,180.19,3.4946895]
[1747194296997,364.0,180.3,180.19,3.4946895]
[1747194297199,58.5,180.29,180.19,3.4946895]
[1747194297900,5.5474,180.28,180.24,5.5483]
[1747194299097,64.0274,180.28,180.24,5.5483]
[1747194299601,58.48,180.28,180.21,58.48]
[1747194300204,5.5484,180.24,180.21,58.48]
[1747194300401,58.48,180.23,180.17,63.8763]
[1747194300907,58.48,180.27,180.19,3.4946895]
[1747194301304,58.48,180.27,180.24,5.5483]
[1747194301599,364.0,180.3,180.24,5.5483]
[1747194301806,58.48,180.29,180.22,58.48]
[1747194302506,5.5472,180.28,180.24,5.5482]
[1747194303605,5.5475,180.27,180.23,5.5486]
[1747194303805,58.48,180.29,180.23,5.5486]
[1747194304205,5.5477,180.27,180.23,5.5486]
[1747194304406,58.48,180.29,180.22,58.48]
[1747194305507,5.5472,180.28,180.24,5.5484]
[1747194306003,58.48,180.29,180.24,5.5484]
[1747194306204,5.5477,180.27,180.23,5.5487]
[1747194306510,5.5477,180.27,180.22,58.48]
[1747194307108,58.48,180.29,180.24,5.5484]
[1747194307301,1.00069169,180.28,180.24,5.5484]
[1747194308004,5.5475,180.27,180.22,58.48]
[1747194308404,58.48,180.29,180.22,58.48]
[1747194308604,6.54829707,180.28,180.22,58.48]
[1747194308911,5.5474,180.28,180.24,5.5484]
[1747194309109,58.48,180.29,180.24,5.5484]
[1747194309511,1.00100301,180.28,180.24,5.5484]
[1747194310011,5.5475,180.27,180.24,5.5484]
[1747194311308,5.5479,180.26,180.22,58.48]
[1747194311512,58.48,180.29,180.22,58.48]
[1747194312014,1.00099017,180.28,180.22,58.48]
[1747194312513,1.00099017,180.28,180.24,5.5482]
[1747194312514,6.54839017,180.28,180.24,5.5482]
[1747194312715,5.5474,180.28,180.24,5.5482]
[1747194313016,5.5475,180.27,180.23,5.5486]
[1747194313315,58.48,180.29,180.22,58.48]
[1747194313614,5.5478,180.26,180.22,64.0288]
[1747194314018,5.5478,180.26,180.22,58.48]
[1747194314218,5.5478,180.26,180.22,64.0289]
[1747194315313,58.48,180.29,180.22,58.48]
[1747194315508,4.36555861,180.27,180.13,58.46]
[1747194315716,427.1084,180.26,180.13,58.46]
[1747194315914,5.5504,180.18,180.13,64.0116]
[1747194316114,58.46,180.2,180.13,58.46]
[1747194316313,58.46,180.19,180.13,62.82555861]
[1747194317216,58.46,180.19,180.18,5.5502]
[1747194317417,58.46,180.19,180.13,62.82555861]
[1747194317615,58.46,180.19,180.13,58.46]
[1747194317818,58.46,180.19,180.16,5.5507]
[1747194318721,64.01,180.19,180.16,5.5507]
[1747194318923,58.46,180.19,180.1,9.77215861]
[1747194319222,58.46,180.19,180.11,116.92]
[1747194320226,5.5504,180.18,180.11,116.92]
[1747194321024,5.5509,180.16,180.11,58.48]
[1747194321224,58.46,180.19,180.11,58.48]
[1747194321622,5.5507,180.17,180.13,5.5516]
[1747194321925,58.46,180.19,180.11,58.48]
[1747194322225,5.5503,180.18,180.11,58.48]
[1747194322425,58.46,180.19,180.11,58.48]
[1747194323226,64.01,180.19,180.15,5.5509]
[1747194324024,5.5502,180.18,180.15,5.5509]
[1747194327727,64.01,180.19,180.16,5.5507]
[1747194328127,5.5503,180.18,180.15,5.5511]
[1747194328526,58.46,180.19,180.11,58.48]
[1747194328726,58.46,180.19,180.16,5.5506]
[1747194329326,64.0099,180.19,180.16,5.5506]
[1747194331427,5.5487,180.23,180.11,58.48]
[1747194331727,58.44,180.24,180.14,4.36555861]
[1747194331926,63.9886,180.24,180.2,5.5494]
[1747194332325,63.9886,180.24,180.18,58.46]
[1747194333029,63.9886,180.24,180.2,5.5493]
[1747194333628,63.9886,180.24,180.21,5.5493]
[1747194334328,422.46,180.26,180.18,58.46]
[1747194334525,58.44,180.25,180.18,62.82555861]
[1747194334830,422.44,180.26,180.18,62.82555861]
[1747194335032,422.44,180.26,180.23,5.5485]
[1747194335227,422.44,180.26,180.19,5.5918]
[1747194335426,422.44,180.26,180.23,5.5484]
[1747194336030,427.9878,180.26,180.23,5.5484]
[1747194336233,422.44,180.26,180.22,5.5489]
[1747194336730,5.5481,180.25,180.22,5.5489]
[1747194337024,422.44,180.26,180.23,5.5487]
[1747194337726,422.44,180.26,180.22,5.5489]
[1747194337929,422.44,180.26,180.18,62.82555861]
[1747194337930,422.44,180.26,180.18,58.46]
[1747194338329,422.44,180.26,180.18,62.82555861]
[1747194339034,427.9878,180.26,180.23,5.5485]
[1747194339232,58.44,180.26,180.18,62.82555861]
[1747194339630,58.44,180.26,180.18,58.46]
[1747194341035,63.9878,180.26,180.18,58.46]
[1747194341433,63.9878,180.26,180.23,5.5485]
[1747194341632,58.44,180.26,180.18,58.46]
[1747194343133,58.44,180.26,180.24,5.5484]
[1747194343534,63.9878,180.26,180.23,5.5484]
[1747194345436,5.5478,180.26,180.23,5.5484]
[1747194347136,5.5475,180.27,180.24,5.5483]
[1747194347336,58.4,180.27,180.18,58.46]
[1747194347734,5.5477,180.27,180.18,58.46]
[1747194347935,63.9477,180.27,180.18,58.46]
[1747194348636,63.9477,180.27,180.25,5.548]
[1747194348836,63.9477,180.27,180.18,58.46]
[1747194349035,5.5477,180.27,180.18,58.46]
[1747194349241,63.9477,180.27,180.18,58.46]
[1747194349534,5.5477,180.27,180.18,58.46]
[1747194349736,63.9477,180.27,180.18,58.46]
[1747194350138,63.9477,180.27,180.18,62.82538277]
[1747194350331,5.5478,180.26,180.18,62.82538277]
[1747194350735,5.5478,180.26,180.23,5.5485]
[1747194351436,58.4,180.27,180.18,62.82538277]
[1747194351437,5.5481,180.25,180.22,5.5489]
[1747194351631,58.4,180.27,180.17,58.38]
[1747194351837,0.9998265,180.26,180.17,58.38]
[1747194352036,5.5487,180.24,180.21,5.5492]
[1747194355741,5.548,180.26,180.17,58.38]
[1747194356042,58.4,180.27,180.17,58.38]
[1747194356245,58.4,180.27,180.17,62.7459652]
[1747194356741,5.5481,180.25,180.22,5.5488]
[1747194356942,58.4,180.27,180.17,62.7459652]
[1747194357143,5.548,180.26,180.22,5.5488]
[1747194358044,58.38,180.26,180.23,5.5486]
[1747194358843,58.38,180.3,180.24,5.5484]
[1747194359041,59.37951381,180.29,180.24,5.5484]
[1747194359443,58.38,180.29,180.24,5.5484]
[1747194359945,5.5476,180.27,180.24,5.5484]
[1747194362046,58.38,180.29,180.17,62.7459652]
[1747194362538,0.99978853,180.28,180.17,62.7459652]
[1747194362748,5.5483,180.25,180.22,5.5488]
[1747194364654,5.5483,180.25,180.21,5.5492]
[1747194364851,5.5484,180.24,180.21,5.5492]
[1747194365046,58.38,180.29,180.17,58.38]
[1747194365248,62.7459652,180.29,180.19,5.5497]
[1747194365447,2.78882781,180.28,180.19,5.5497]
[1747194365951,0.99962781,180.27,180.19,5.5497]
[1747194366152,368.3659652,180.26,180.17,58.38]
[1747194366350,59.37962781,180.25,180.17,58.38]
[1747194366656,5.5505,180.18,180.14,485.1512]
[1747194366845,58.36,180.18,180.13,58.38]
[1747194367044,5.5491,180.22,180.13,58.38]
[1747194367251,63.9091,180.22,180.13,62.0182]
[1747194367749,63.9091,180.22,180.14,1.8763]
[1747194368552,5.5493,180.21,180.17,5.5503]
[1747194368759,58.36,180.22,180.14,1.8763]
[1747194368955,422.36,180.24,180.14,60.2363]
[1747194369153,5.5487,180.23,180.19,5.5497]
[1747194369452,5.5487,180.23,180.18,58.38]
[1747194370953,5.5487,180.23,180.2,5.5496]
[1747194371954,364.0,180.24,180.18,58.38]
[1747194372356,58.34,180.26,180.18,58.38]
[1747194373558,58.34,180.26,180.23,5.5484]
[1747194373753,58.34,180.26,180.18,62.7459652]
[1747194373948,5.5477,180.27,180.18,62.7459652]
[1747194373949,5.5477,180.27,180.19,3.6353]
[1747194374252,5.5477,180.27,180.23,5.5484]
[1747194374757,5.5477,180.27,180.23,63.9284]
[1747194374955,5.5477,180.27,180.24,5.5484]
[1747194376861,5.5477,180.27,180.23,63.9286]
[1747194377463,58.34,180.28,180.23,58.38]
[1747194378064,5.5479,180.26,180.23,63.9287]
[1747194379363,5.5482,180.25,180.23,58.38]
[1747194379667,58.34,180.28,180.23,58.38]
[1747194379864,5.5484,180.24,180.23,58.38]
[1747194380063,116.72,180.28,180.19,63.9298]
[1747194380467,4.3659652,180.26,180.14,60.2563]
[1747194380664,4.3659652,180.23,180.14,60.2563]
[1747194380865,58.32,180.22,180.14,58.38]
[1747194381064,5.5505,180.18,180.14,63.9313]
[1747194381365,5.5505,180.18,180.14,58.38]
[1747194381665,5.55,180.19,180.14,58.38]
[1747194382262,58.32,180.22,180.15,5.5511]
[1747194382466,5.5503,180.18,180.15,5.5511]
[1747194384172,5.5506,180.17,180.14,63.9314]
[1747194384363,58.32,180.22,180.14,63.9314]
[1747194384668,58.32,180.22,180.14,58.38]
[1747194385170,4.3659652,180.2,180.1,67.397]
[1747194385471,4.3659652,180.17,180.06,58.32]
[1747194385766,117.63789858,180.16,180.06,58.32]
[1747194385964,5.5515,180.14,180.06,58.32]
[1747194386157,116.64,180.16,180.1,5.5525]
[1747194386469,116.64,180.16,180.06,58.32]
[1747194386670,58.32,180.16,180.06,58.32]
[1747194387265,5.5513,180.15,180.06,58.32]
[1747194388369,5.5513,180.15,180.11,5.5522]
[1747194389074,5.5515,180.14,180.1,5.5527]
[1747194389371,5.5515,180.14,180.06,58.32]
[1747194389873,5.5515,180.14,180.1,5.5525]
[1747194390274,5.5515,180.14,180.06,58.32]
[1747194390775,5.5512,180.15,180.06,58.32]
[1747194392088,5.5512,180.15,180.11,5.5523]
[1747194394386,58.32,180.16,180.06,58.32]
[1747194395088,63.8711,180.16,180.12,5.552]
[1747194395490,58.32,180.16,180.12,5.552]
[1747194395787,62.6859652,180.16,180.06,58.32]
[1747194395985,59.3374749,180.15,180.06,58.32]
[1747194396187,5.5527,180.1,180.06,58.32]
[1747194396387,63.8527,180.1,180.06,58.32]
[1747194396587,58.3,180.1,180.06,63.8739]
[1747194396990,58.3,180.1,180.06,58.32]
[1747194397289,58.3,180.1,180.08,5.5531]
[1747194397688,58.3,180.1,180.06,58.32]
[1747194398092,58.3,180.1,180.09,5.553]
[1747194401484,58.34,180.15,180.1,5.5524]
[1747194401684,58.34,180.15,180.06,58.32]
[1747194401890,58.3,180.14,180.06,58.32]
[1747194402083,63.8517,180.14,180.1,5.5525]
[1747194402281,58.3,180.14,180.1,5.5525]
[1747194402482,58.3,180.14,180.06,58.32]
[1747194403792,5.5526,180.11,180.08,5.5532]
[1747194404293,58.3,180.14,180.06,58.32]
[1747194404894,5.5518,180.13,180.1,5.5526]
[1747194405092,58.3,180.14,180.06,58.32]
[1747194405491,63.8515,180.14,180.1,5.5525]
[1747194405995,5.5518,180.13,180.1,5.5525]
[1747194407696,5.5518,180.13,180.09,5.5529]
[1747194407894,5.5518,180.13,180.06,58.32]
[1747194408197,5.5518,180.13,180.09,5.5528]
[1747194408392,5.5521,180.12,180.09,5.5528]
[1747194409497,63.8517,180.14,180.1,5.5527]
[1747194409697,58.3,180.14,180.1,5.5527]
[1747194410097,58.3,180.14,180.06,58.32]
[1747194410999,5.5526,180.11,180.08,5.5531]
[1747194414597,5.5528,180.1,180.07,5.5536]
[1747194415096,58.3,180.14,180.06,58.32]
[1747194415097,5.5533,180.09,180.06,58.32]
[1747194415298,58.3,180.14,180.06,58.32]
[1747194415999,5.5532,180.09,180.06,58.32]
[1747194416600,5.5532,180.09,180.06,63.8739]
[1747194417602,63.8128,180.1,180.06,63.8739]
[1747194419506,63.8128,180.1,180.07,5.5535]
[1747194420300,63.8128,180.1,180.06,63.8738]
[1747194421506,58.26,180.1,180.06,58.32]
[1747194421906,62.6259652,180.1,180.02,63.5565]
[1747194422099,120.8859652,180.1,180.02,58.26]
[1747194422700,4.3659652,180.07,179.98,479.68]
[1747194422906,116.5,180.06,179.97,58.26]
[1747194423111,4.3659652,180.04,179.97,58.26]
[1747194423405,116.5,180.06,179.97,58.26]
[1747194423816,5.5549,180.03,179.99,5.5559]
[1747194424109,58.24,180.02,179.99,5.5559]
[1747194424506,63.7952,180.02,179.98,5.5563]
[1747194424706,58.24,180.02,179.97,58.26]
[1747194425209,58.24,180.02,180.0,5.5558]
[1747194425404,58.24,180.02,179.97,58.26]
[1747194425907,63.7954,180.02,179.98,5.5564]
[1747194426408,63.7954,180.02,179.99,5.5561]
[1747194426607,58.24,180.02,179.99,5.5561]
[1747194426805,58.24,180.02,179.97,58.26]
[1747194427007,58.22,180.03,179.97,58.26]
[1747194427611,58.22,180.03,180.01,5.5552]
[1747194428808,58.22,180.03,180.02,5.5552]
[1747194429010,58.22,180.04,180.02,5.5552]
[1747194429709,58.22,180.04,180.03,5.5549]
[1747194433217,5.5534,180.08,180.05,5.5542]
[1747194433417,58.22,180.07,180.05,5.5542]
[1747194434218,58.22,180.07,180.06,5.5539]
[1747194434417,422.22,180.09,180.01,58.28]
[1747194434618,422.22,180.09,180.02,5.5063]
[1747194434916,58.22,180.1,180.02,5.5063]
[1747194435321,63.8322,180.12,180.02,5.5063]
[1747194435518,58.2,180.11,180.02,5.5063]
[1747194437217,364.0,180.15,180.02,5.5063]
[1747194437422,58.2,180.14,180.03,4.3659652]
[1747194437620,58.2,180.14,180.04,58.2]
[1747194437817,58.2,180.14,180.05,58.28]
[1747194438018,63.7517,180.14,180.09,5.5527]
[1747194438219,63.7517,180.14,180.05,58.28]
[1747194438620,63.7517,180.14,180.1,5.5525]
[1747194439321,5.5517,180.14,180.1,5.5525]
[1747194440222,422.18,180.15,180.05,58.28]
[1747194441925,5.5529,180.1,180.06,5.5537]
[1747194442427,58.18,180.11,180.05,58.28]
[1747194442626,63.7324,180.11,180.05,58.28]
[1747194443125,63.7324,180.11,180.07,5.5534]
[1747194443725,5.5527,180.1,180.07,5.5534]
[1747194443920,58.18,180.11,180.07,5.5534]
[1747194444726,58.18,180.11,180.05,63.834]
[1747194444727,5.5531,180.09,180.05,63.834]
[1747194445030,5.5531,180.09,180.05,58.28]
[1747194445324,5.5531,180.09,180.06,5.5537]
[1747194445827,5.5528,180.1,180.06,5.5537]
[1747194446022,5.5528,180.1,180.07,5.5536]
[1747194447122,63.7325,180.11,180.07,5.5536]
[1747194447330,63.7325,180.11,180.08,5.5533]
[1747194448533,58.18,180.11,180.06,5.5537]
[1747194449340,5.5527,180.1,180.07,5.5536]
[1747194449531,58.18,180.11,180.05,58.28]
[1747194450741,5.5532,180.09,180.05,63.8341]
[1747194450930,58.18,180.11,180.05,58.28]
[1747194451536,5.5535,180.08,180.05,58.28]
[1747194452233,5.5535,180.08,180.05,63.834]
[1747194452938,58.18,180.11,180.05,63.834]
[1747194453241,58.18,180.11,180.06,5.5539]
[1747194453736,5.553,180.1,180.06,5.5539]
[1747194455642,5.553,180.09,180.06,5.5539]
[1747194455841,58.18,180.11,180.05,58.28]
[1747194456141,5.5535,180.08,180.05,58.28]
[1747194456343,5.5535,180.08,180.05,63.8341]
[1747194456642,58.18,180.11,180.05,58.28]
[1747194457747,5.5536,180.08,180.05,58.28]
[1747194458042,58.18,180.11,180.05,58.28]
[1747194458344,5.5536,180.08,180.05,58.28]
[1747194458743,58.18,180.11,180.05,58.28]
[1747194458947,5.5529,180.1,180.05,58.28]
[1747194459145,5.5529,180.1,180.06,5.5537]
[1747194459344,5.5529,180.1,180.05,58.28]
[1747194459645,5.5529,180.1,180.06,5.5539]
[1747194460045,5.553,180.09,180.06,5.5539]
[1747194460348,58.18,180.11,180.06,5.5539]
[1747194460544,5.5529,180.1,180.06,5.5539]
[1747194460748,58.18,180.11,180.06,5.5539]
[1747194461044,5.5532,180.09,180.06,5.5539]
[1747194461648,5.5532,180.09,180.05,63.8341]
[1747194461853,58.18,180.11,180.05,63.8341]
[1747194461854,5.5535,180.08,180.05,63.8341]
[1747194463049,5.553,180.1,180.06,5.5538]
[1747194463648,63.633,180.1,180.06,5.5538]
[1747194463948,5.5521,180.12,180.05,58.28]
[1747194464849,5.5525,180.11,180.05,58.28]
[1747194465051,58.08,180.13,180.05,58.28]
[1747194465241,58.08,180.13,180.07,5.5533]
[1747194465644,58.08,180.13,180.05,58.28]
[1747194466054,5.5536,180.08,180.05,58.28]
[1747194466350,63.6336,180.08,180.05,58.28]
[1747194466755,63.6336,180.08,179.98,1.8749]
[1747194466756,5.5539,180.06,180.01,58.16]
[1747194467054,58.08,180.08,180.01,58.16]
[1747194467551,116.24,180.08,180.01,58.16]
[1747194467753,5.5547,180.04,180.01,63.7154]
[1747194468051,58.08,180.03,180.01,63.7154]
[1747194468253,58.08,180.03,180.01,58.16]
[1747194468454,58.08,180.03,179.99,5.5559]
[1747194468654,58.08,180.03,179.97,668.40110391]
[1747194469154,5.5555,180.01,179.98,5.5564]
[1747194469458,58.08,180.03,179.97,188.42110391]
[1747194470056,63.6349,180.03,179.99,5.5559]
[1747194471054,63.6349,180.03,180.0,5.5557]
[1747194471254,58.08,180.03,180.0,5.5557]
[1747194472656,58.08,180.03,179.97,188.42110391]
[1747194472858,58.06,180.06,179.97,188.42110391]
[1747194473058,58.06,180.06,179.97,190.32330391]
[1747194473258,63.614,180.06,179.97,190.32330391]
[1747194476959,63.614,180.06,180.03,5.5548]
[1747194478057,5.5543,180.05,180.02,5.5551]
[1747194478362,58.06,180.06,179.97,190.32330391]
[1747194478658,63.614,180.06,179.97,190.32330391]
[1747194479462,63.614,180.06,180.03,5.5547]
[1747194480557,5.554,180.06,180.03,5.5547]
[1747194480758,58.04,180.05,180.03,5.5547]
[1747194480961,58.04,180.05,180.04,5.5545]
[1747194481559,370.2405652,180.09,180.01,58.06]
[1747194481560,5.5534,180.08,180.01,58.06]
[1747194481760,58.04,180.07,180.01,58.06]
[1747194482259,58.04,180.07,180.06,5.5539]
[1747194482658,58.02,180.09,180.01,58.06]
[1747194482863,5.5525,180.11,180.01,58.06]
[1747194483056,422.06,180.14,180.02,3.5768]
[1747194483364,63.572,180.13,180.09,5.5528]
[1747194486860,5.552,180.13,180.09,5.5528]
[1747194487062,58.0,180.12,180.09,5.5528]
[1747194487462,63.5521,180.12,180.09,5.5528]
[1747194488464,58.0,180.12,180.09,5.5528]
[1747194489366,58.0,180.12,180.1,5.5527]
[1747194490261,427.6115,180.14,180.11,5.5524]
[1747194490664,57.98,180.13,180.11,5.5524]
[1747194490867,5.5512,180.15,180.12,5.5521]
[1747194491167,63.5312,180.15,180.12,5.5521]
[1747194491566,5.5512,180.15,180.12,5.5521]
[1747194491766,63.5312,180.15,180.12,5.5521]
[1747194492466,57.98,180.15,180.12,5.5521]
[1747194493975,63.5312,180.15,180.12,5.5521]
[1747194494175,58.04,180.18,180.06,58.06]
[1747194494375,57.96,180.17,180.06,58.06]
[1747194494670,63.5106,180.17,180.14,5.5514]
[1747194496276,57.96,180.17,180.14,5.5514]
[1747194497077,63.5106,180.17,180.14,5.5514]
[1747194497275,5.5506,180.17,180.13,5.5517]
[1747194497477,57.94,180.16,180.13,5.5517]
[1747194497879,57.94,180.16,180.14,5.5514]
[1747194498778,62.4059652,180.2,180.1,58.04]
[1747194498779,58.04,180.2,180.1,58.04]
[1747194498979,422.04,180.24,180.11,5.5163]
[1747194499180,58.94197837,180.23,180.11,5.5163]
[1747194499382,63.489,180.23,180.19,5.5497]
[1747194499777,57.94,180.23,180.16,58.04]
[1747194499977,422.04,180.24,180.16,58.04]
[1747194500173,58.94186999,180.23,180.14,58.04]
[1747194500377,1.00186999,180.22,180.11,5.5163]
[1747194500680,5.5502,180.18,180.14,5.5515]
[1747194500880,57.94,180.17,180.11,63.5563]
[1747194501183,57.94,180.17,180.14,5.5512]
[1747194501383,57.94,180.17,180.11,63.5563]
[1747194501780,426.4059652,180.24,180.11,63.5563]
[1747194501975,57.92,180.2,180.11,121.4763]
[1747194502382,422.04,180.24,180.12,4.3659652]
[1747194502682,57.92,180.23,180.12,4.3659652]
[1747194502878,57.92,180.23,180.21,5.5491]
[1747194503585,364.0,180.24,180.22,5.549]
[1747194503884,364.0,180.24,180.18,57.9]
[1747194504283,57.92,180.25,180.18,57.9]
[1747194505588,57.92,180.25,180.19,5.4258]
[1747194505790,57.92,180.25,180.23,5.5484]
[1747194505988,5.5476,180.27,180.23,5.5484]
[1747194506189,63.4476,180.27,180.23,5.5484]
[1747194506593,63.4476,180.27,180.24,5.5482]
[1747194507594,369.5466,180.3,180.22,57.9]
[1747194507890,57.9,180.29,180.22,57.9]
[1747194508091,63.4469,180.29,180.25,5.548]
[1747194509391,63.4469,180.29,180.26,5.5477]
[1747194509691,57.88,180.29,180.22,57.9]
[1747194510495,364.0,180.3,180.22,57.9]
[1747194510692,421.88,180.3,180.22,57.9]
[1747194510897,57.88,180.3,180.27,5.5474]
[1747194511098,57.88,180.3,180.22,57.9]
[1747194511899,5.5472,180.28,180.22,57.9]
[1747194512300,57.88,180.3,180.22,57.9]
[1747194513701,57.88,180.3,180.23,5.5486]
[1747194513901,59.7344,180.3,180.23,5.5486]
[1747194514100,58.88277086,180.29,180.22,57.9]
[1747194514298,5.5474,180.28,180.24,5.5482]
[1747194515702,57.88,180.29,180.22,57.9]
[1747194517803,368.3659652,180.31,180.22,57.9]
[1747194518003,57.84,180.28,180.22,57.9]
[1747194519705,5.5475,180.27,180.23,5.5485]
[1747194520107,5.5475,180.27,180.22,57.9]
[1747194521008,5.5475,180.27,180.24,5.5483]
[1747194522311,5.5475,180.27,180.23,5.5486]
[1747194522608,57.84,180.28,180.22,57.9]
[1747194522809,57.84,180.28,180.18,57.88]
[1747194522810,62.2059652,180.28,180.18,57.88]
[1747194523005,4.63896594,180.27,180.18,57.88]
[1747194523309,3.6366,180.27,180.18,57.88]
[1747194523705,57.82,180.26,180.18,57.88]
[1747194523907,57.82,180.26,180.19,3.5993]
[1747194524411,57.82,180.26,180.23,5.5485]
[1747194525413,5.5473,180.28,180.24,5.5483]
[1747194525601,57.8,180.26,180.24,5.5483]
[1747194527314,5.5475,180.27,180.24,5.5483]
[1747194527608,63.3475,180.27,180.24,5.5483]
[1747194528510,57.88,180.3,180.27,5.5472]
[1747194528712,57.8,180.29,180.27,5.5472]
[1747194528912,57.88,180.3,180.27,5.5472]
[1747194529210,57.8,180.29,180.27,5.5472]
[1747194529811,57.8,180.29,180.22,57.88]
[1747194530414,5.5472,180.28,180.25,5.548]
[1747194530609,57.8,180.29,180.25,5.548]
[1747194530810,63.347,180.29,180.26,5.5478]
[1747194531109,57.8,180.29,180.22,57.88]
[1747194531411,57.8,180.29,180.27,5.5473]
[1747194531815,57.88,180.3,180.22,57.88]
[1747194532110,57.8,180.29,180.27,5.5472]
[1747194533911,63.4266,180.3,180.27,5.5472]
[1747194534114,57.78,180.29,180.27,5.5472]
[1747194536215,57.78,180.29,180.22,57.88]
[1747194536706,5.5478,180.26,180.23,5.5486]
[1747194538616,5.5481,180.25,180.22,63.4288]
[1747194540518,63.3081,180.25,180.22,63.4288]
[1747194541618,57.76,180.25,180.22,57.88]
[1747194542110,57.76,180.25,180.18,57.78]
[1747194542316,5.5486,180.24,180.18,57.78]
[1747194542818,5.549,180.22,180.19,5.5499]
[1747194543120,57.76,180.21,180.14,61.401]
[1747194543616,5.5498,180.2,180.17,5.5503]
[1747194543815,5.5498,180.2,180.14,61.401]
[1747194544219,5.5498,180.2,180.16,5.5506]
[1747194544419,57.76,180.21,180.14,57.78]